[Event "Ceske Budejovice IM 2022"]
[Site "Ceske Budejovice"]
[Date "2022.07.01"]
[Round "1.1"]
[White "Nagy, Ladislav"]
[Black "Gretarsson, Helgi Ass"]
[Result "0-1"]
[ECO "B06"]
[WhiteElo "2209"]
[BlackElo "2472"]
[Annotator "TA"]
[PlyCount "66"]
[EventDate "2022.07.01"]
[EventType "tourn"]
[EventCountry "CZE"]
[SourceTitle "playchess.com"]
[Source "ChessBase"]
[SourceQuality "1"]
[TimeControl "40/5400+30:1800+30"]

{[%evp 9,66,44,47,25,66,38,61,31,53,24,43,22,43,41,50,48,31,4,45,-12,-2,-40,-16,-102,-89,-75,-64,-381,-350,-353,-356,-341,-337,-426,-397,-389,-408,-394,-383,-522,-405,-525,-522,-530,-547,-691,-680,-882,-866,-932,-941,-1091,-875,-1420,-1120,-1414,-1264,-1192,-1022]} 1. e4 {[%emt 0:00:04]} g6 {[%emt 0:00:06]} 2. d4 {[%emt 0:00:15]} Bg7 {[%emt 0:00:04]} 3. Nc3 {[%emt 0:00:41]} d6 {[%emt 0:00:06]} 4. Be3 {[%emt 0:00:48]} a6 {[%emt 0:00:06]} 5. Qd2 {[%emt 0:00:56]} b5 {[%emt 0:00:12]} 6. h4 {[%emt 0:01:51] B06: Modern Defence.} h6 {[%emt 0:06:13]} 7. a3 {[%emt 0:04:50]} Bb7 {[%emt 0:09:02]} 8. f3 {[%emt 0:02:37] White is slightly better.} Nd7 {[%emt 0:02:07]} 9. O-O-O {[%emt 0:06:11]} Ngf6 {[%emt 0:16:32] [#]} 10. Kb1 $146 {[%emt 0:06:40]} ({Predecessor:} 10. Nge2 Nb6 11. Nf4 Nfd7 12. g4 c5 13. Rg1 cxd4 14. Bxd4 Bxd4 15. Qxd4 e5 16. Qxd6 exf4 17. Nxb5 axb5 18. Bxb5 {0-1 (48) Zong,D (2141)-Hjartarson,J (2470) Chess.com INT 2022}) 10... e6 {[%emt 0:06:30]} 11. Nh3 {[%emt 0:09:35]} c5 {[%emt 0:10:01]} 12. dxc5 {[%emt 0:19:43]} dxc5 {[%emt 0:00:06]} 13. Bf4 {[%emt 0:03:12]} Qb6 {[%emt 0:11:51]} 14. Be2 {[%emt 0:14:43]} (14. Qe3 $14) 14... Bc6 $11 {[%emt 0:00:56]} 15. g4 {[%emt 0:08:32]} a5 {[%emt 0:17:18] Strongly threatening ...b4.} 16. a4 {[%emt 0:02:52]} (16. Qd6 $11 {remains equal.} c4 17. Qc7) 16... bxa4 $17 {[%emt 0:00:01] ...0-0 is the strong threat.} 17. Ka2 {[%emt 0:00:58]} h5 $40 {[%emt 0:00:05][%mdl 128] Black is up to no good.} 18. e5 $2 {[%emt 0:08:04][%mdl 8192] [#] White does not recover from this.} (18. Nf2 $1 $15) 18... Nd5 {[%emt 0:01:16] The board is on fire.} 19. Nxd5 {[%emt 0:00:29]} Bxd5+ {[%emt 0:04:24]} ({Inferior is} 19... exd5 20. Rb1 $17) 20. c4 {[%emt 0:00:57]} Bc6 {[%emt 0:00:33]} ({Not} 20... Bxe5 21. cxd5 Rb8 22. Bxe5 Nxe5 23. Qc3 Qb3+ 24. Qxb3 axb3+ 25. Ka3 $18) 21. Qc3 {[%emt 0:02:27] Inhibits Qb3+.} Qb3+ {[%emt 0:00:16]} 22. Qxb3 {[%emt 0:01:15]} axb3+ {[%emt 0:00:02]} 23. Kxb3 {[%emt 0:00:57]} hxg4 {[%emt 0:00:05][%cal Bh5g4,Bg4f3,Bf3f2][%mdl 32]} 24. Rd6 {[%emt 0:02:00]} Rc8 {[%emt 0:03:58]} 25. Ng5 {[%emt 0:00:25]} Bxe5 {[%emt 0:00:29] Black is clearly winning.} 26. Bxe5 {[%emt 0:00:48]} Nxe5 {[%emt 0:00:02]} 27. Re1 {[%emt 0:01:14]} Ke7 {[%emt 0:00:59]} 28. Rdd1 {[%emt 0:00:42]} gxf3 {[%emt 0:00:27]} 29. Bf1 {[%emt 0:00:27]} f6 {[%emt 0:00:21]} 30. Bh3 {[%emt 0:00:16]} f2 {[%emt 0:01:47]} 31. Re3 {[%emt 0:00:31]} Rxh4 {[%emt 0:02:16]} 32. Bxe6 {[%emt 0:00:15]} Rb8+ {[%emt 0:00:39]} 33. Ka2 {[%emt 0:00:17]} Bg2 {[%emt 0:01:20] Weighted Error Value: White=0.92/Black=0.38} 0-1

[Event "Ceske Budejovice IM 2022"]
[Site "Ceske Budejovice"]
[Date "2022.07.01"]
[Round "1.3"]
[White "Lajbl, Jan"]
[Black "Bochnicka, Vladimir"]
[Result "1/2-1/2"]
[ECO "C55"]
[WhiteElo "2212"]
[BlackElo "2295"]
[Annotator "TA"]
[PlyCount "77"]
[EventDate "2022.07.01"]
[EventType "tourn"]
[EventCountry "CZE"]
[SourceTitle "playchess.com"]
[Source "ChessBase"]
[SourceQuality "1"]
[TimeControl "40/5400+30:1800+30"]

{[%evp 9,77,19,33,17,23,27,27,13,29,16,48,48,57,36,90,58,135,42,8,-62,1,1,8,18,22,10,10,18,16,-22,-22,-17,-20,-66,-66,-66,-66,-66,-66,-66,-67,-68,-68,-83,-67,-72,0,0,0,0,0,0,0,0,0,0,0,0,0,-8,0,0,0,0,0,0,0,0,0,0]} 1. e4 {[%emt 0:10:09]} e5 {[%emt 0:00:08]} 2. Nf3 {[%emt 0:00:03]} Nc6 {[%emt 0:00:06]} 3. Bc4 {[%emt 0:00:34]} Nf6 {[%emt 0:00:09]} 4. d3 {[%emt 0:01:00]} h6 {[%emt 0:00:29]} 5. c3 {[%emt 0:00:34]} g5 {[%emt 0:08:23]} 6. h3 {[%emt 0:05:20] C55: Two Knights: 4 d3, 4 d4 exd4 5 e5 and Max Lange Attack.} Bg7 {[%emt 0:01:33]} (6... d5 7. exd5 Nxd5 8. Qb3 $16) 7. Nbd2 {[%emt 0:01:46][%cal Bb1d2,Bd2f1,Bf1g3,Bg3f5][%mdl 32]} O-O {[%emt 0:01:10]} 8. Bb3 {[%emt 0:02:21] White has an edge.} d6 {[%emt 0:03:31]} 9. Nf1 {[%emt 0:02:16]} Ne7 {[%emt 0:02:45]} 10. Ng3 {[%emt 0:03:42]} Ng6 {[%emt 0:02:34]} 11. Nf5 {[%emt 0:09:44] [#]} c6 $146 {[%emt 0:36:09]} (11... d5 $14) ({Predecessor:} 11... d5 12. Qc2 Re8 13. g4 Nf4 14. Bxf4 exf4 15. e5 h5 16. O-O-O hxg4 17. hxg4 Nxg4 {1-0 (24) Andriasian,Z (2581)-Katz,A (2405) Philadelphia 2021}) 12. g4 {[%emt 0:08:52] And now h4 would win. 0x0.0008618827aedp-1022s more active pieces. The black rooks are badly placed.} ({Reject} 12. Nxg7 $6 Kxg7 13. Be3 d5 $11) 12... d5 {[%emt 0:06:00] [#]} (12... Bxf5 $14 13. gxf5 Nf4) 13. Qe2 {[%emt 0:06:07]} (13. h4 $1 $16) 13... Re8 $14 {[%emt 0:02:29]} 14. h4 {[%emt 0:07:43]} (14. Nxg7 $11 Kxg7 15. h4) 14... dxe4 {[%emt 0:10:36]} (14... Bxf5 $15 15. gxf5 Nf4 16. Bxf4 exf4) 15. dxe4 $11 {[%emt 0:06:06]} Nf4 $132 {[%emt 0:05:39][%mdl 2048] Black puts up resistance} 16. Bxf4 {[%emt 0:01:53]} exf4 {[%emt 0:00:07]} 17. Rd1 {[%emt 0:02:44]} ({Not} 17. hxg5 $2 Rxe4 18. gxf6 Rxe2+ 19. Kxe2 Bxf5 20. gxf5 Qxf6 $19) 17... Bxf5 {[%emt 0:02:23]} 18. Rxd8 {[%emt 0:06:12]} Raxd8 {[%emt 0:00:03]} 19. gxf5 {[%emt 0:07:32]} (19. exf5 $5 Rxe2+ 20. Kxe2 $11) 19... Rxe4 {[%emt 0:00:19]} 20. hxg5 {[%emt 0:02:00] [#]} Rde8 $1 {[%emt 0:01:57]} 21. Qxe4 {[%emt 0:01:53]} ({But not} 21. Bxf7+ $2 Kxf7 22. g6+ Kg8 23. Qxe4 Nxe4 $19) (21. Bc4 $11 Rxe2+ 22. Bxe2 hxg5 23. Nxg5) (21. Bd1 Rxe2+) 21... Nxe4 $15 {[%emt 0:00:13]} 22. O-O {[%emt 0:05:05]} hxg5 {[%emt 0:03:46]} 23. Re1 {[%emt 0:01:33] Black must now prevent Nxg5.} Bf6 {[%emt 0:00:30]} 24. Nd2 {[%emt 0:02:48]} Nd6 {[%emt 0:00:58]} 25. Rxe8+ {[%emt 0:00:13]} Nxe8 {[%emt 0:00:06][%mdl 4096] Endgame KBN-KBN} 26. Ne4 {[%emt 0:00:05]} Kf8 {[%emt 0:01:56]} 27. Kg2 {[%emt 0:00:29]} Ke7 {[%emt 0:04:26]} (27... Bd8 $17) 28. Kf3 {[%emt 0:00:12] The position is equal.} Nd6 {[%emt 0:01:40]} 29. Nxd6 {[%emt 0:00:49]} Kxd6 {[%emt 0:00:04]} 30. Bxf7 $11 {[%emt 0:00:22] KB-KB} Ke5 {[%emt 0:00:06]} 31. Be6 {[%emt 0:00:54]} a5 {[%emt 0:00:36]} 32. a4 {[%emt 0:00:44]} b6 {[%emt 0:01:21]} 33. b3 {[%emt 0:02:30]} Kd6 {[%emt 0:00:51]} 34. c4 {[%emt 0:00:29]} Kc5 {[%emt 0:02:18]} 35. Bd7 $1 {[%emt 0:00:18]} Kb4 {[%emt 0:00:31]} 36. Bxc6 {[%emt 0:00:09]} Kxb3 {[%emt 0:00:30]} 37. Bb5 {[%emt 0:00:06]} Kc3 {[%emt 0:00:37]} 38. Kg4 {[%emt 0:00:46]} Kd4 {[%emt 0:01:03]} 39. f3 {[%emt 0:00:57] Weighted Error Value: White=0.15 (very precise) /Black=0.12 (very precise)} 1/2-1/2

[Event "Ceske Budejovice IM 2022"]
[Site "Ceske Budejovice"]
[Date "2022.07.01"]
[Round "1.4"]
[White "Finek, Vaclav"]
[Black "Svanda, Ondrej"]
[Result "1/2-1/2"]
[ECO "A46"]
[WhiteElo "2393"]
[BlackElo "2363"]
[Annotator "TA"]
[PlyCount "70"]
[EventDate "2022.07.01"]
[EventType "tourn"]
[EventCountry "CZE"]
[SourceTitle "playchess.com"]
[Source "ChessBase"]
[SourceQuality "1"]
[TimeControl "40/5400+30:1800+30"]

{[%evp 9,70,4,8,10,8,9,0,5,0,0,0,-8,22,0,20,0,14,-5,38,15,60,31,35,14,33,29,21,3,3,0,0,0,0,0,0,0,-3,-4,-8,-6,-7,-8,-4,-4,0,0,0,0,0,0,0,0,0,0,0,0,0,1,1,1,3,0,0]} 1. d4 {[%emt 0:00:01]} Nf6 {[%emt 0:00:12]} 2. Nf3 {[%emt 0:00:26]} e6 {[%emt 0:00:18]} 3. g3 {[%emt 0:00:17]} b5 {[%emt 0:00:15]} 4. e3 {[%emt 0:00:30]} a6 {[%emt 0:00:53]} 5. a4 {[%emt 0:00:20]} b4 {[%emt 0:00:52]} 6. Bg2 {[%emt 0:00:21] A46: 1 d4 Nf6 2 Nf3 e6: Torre, London and Colle Systems.} Bb7 {[%emt 0:00:07]} 7. O-O {[%emt 0:00:13]} Be7 {[%emt 0:07:06]} 8. c4 {[%emt 0:04:48]} bxc3 {[%emt 0:00:42] [#]} 9. bxc3 $146 {[%emt 0:00:10]} ({Predecessor:} 9. Nxc3 O-O 10. Qc2 d6 11. e4 Nbd7 12. Re1 e5 13. d5 a5 14. Be3 Ng4 15. Bd2 {1-0 (29) Kobo,O (2449)-Yang,K (2275) Chess.com INT 2020}) 9... c5 {[%emt 0:02:03]} 10. Nbd2 {[%emt 0:02:35]} Qc7 {[%emt 0:07:42]} 11. Ba3 {[%emt 0:02:45]} d6 {[%emt 0:06:27]} 12. Rb1 {[%emt 0:02:20]} Nbd7 {[%emt 0:05:24]} 13. Re1 {[%emt 0:07:52]} (13. dxc5 {with more complications.} dxc5 14. Rxb7 Qxb7 15. Ne5) 13... d5 {[%emt 0:08:02]} 14. c4 {[%emt 0:04:56]} O-O {[%emt 0:06:26]} 15. Qc2 {[%emt 0:03:35]} Rab8 {[%emt 0:10:17]} 16. Rec1 {[%emt 0:17:37]} dxc4 {[%emt 0:05:55]} 17. Qxc4 {[%emt 0:02:20]} ({Inferior is} 17. Nxc4 Be4 18. Rxb8 Bxc2 19. Rxf8+ Bxf8 $17) 17... Bd5 {[%emt 0:00:51]} 18. Qxa6 {[%emt 0:06:06] The position is equal.} Rxb1 {[%emt 0:04:13]} 19. Rxb1 {[%emt 0:12:00]} Ra8 {[%emt 0:00:02]} 20. Qb5 {[%emt 0:00:23]} Ra5 {[%emt 0:00:44]} 21. Qb2 {[%emt 0:01:45]} Rxa4 {[%emt 0:02:45]} 22. Bxc5 {[%emt 0:06:14]} Nxc5 {[%emt 0:10:10]} 23. Qb8+ {[%emt 0:02:31]} Qxb8 {[%emt 0:00:02]} 24. Rxb8+ {[%emt 0:00:09]} Bf8 {[%emt 0:00:01] [#] Hoping for ...Nce4.} 25. dxc5 {[%emt 0:00:09] Strongly threatening Ne5.} Ra1+ {[%emt 0:00:01]} 26. Nf1 $132 {[%emt 0:03:17][%mdl 2048] Threatens to win with Ne5. White has counterplay} Ra8 {[%emt 0:00:31]} 27. Rxa8 {[%emt 0:00:39]} Bxa8 {[%emt 0:00:00]} 28. Ne5 {[%emt 0:00:27]} Bxg2 {[%emt 0:00:03]} 29. Kxg2 {[%emt 0:00:08]} Bxc5 $11 {[%emt 0:00:01][%mdl 4096] Endgame KBN-KNN} 30. Nd2 {[%emt 0:00:11]} g6 {[%emt 0:00:19]} 31. Nd3 {[%emt 0:00:20]} Bd6 {[%emt 0:00:37]} 32. f4 {[%emt 0:00:30]} h5 {[%emt 0:00:35]} 33. e4 {[%emt 0:00:27][%cal Be3e4,Be4e5][%mdl 32] [#] Black must now prevent e5.} Bc7 {[%emt 0:00:34]} 34. e5 {[%emt 0:00:24]} Nd5 {[%emt 0:00:11]} 35. Kf3 {[%emt 0:00:14]} Kg7 {[%emt 0:04:30] Weighted Error Value: White=0.07 (flawless) /Black=0.06 (flawless)} 1/2-1/2

[Event "Ceske Budejovice IM 2022"]
[Site "Ceske Budejovice"]
[Date "2022.07.01"]
[Round "1.5"]
[White "Civin, Tomas"]
[Black "Plischki, Sebastian"]
[Result "1/2-1/2"]
[ECO "A56"]
[WhiteElo "2419"]
[BlackElo "2384"]
[Annotator "TA"]
[PlyCount "81"]
[EventDate "2022.07.01"]
[EventType "tourn"]
[EventCountry "CZE"]
[SourceTitle "playchess.com"]
[Source "ChessBase"]
[SourceQuality "1"]
[TimeControl "40/5400+30:1800+30"]

{[%evp 17,81,18,15,22,21,0,0,0,0,0,0,-169,-164,-162,-155,-147,-147,-244,-253,-279,-264,-269,-269,-385,-387,-379,-331,-352,-396,-386,-368,-605,-449,-445,-419,-519,-484,-457,-45,-37,-42,-35,-35,-29,0,0,0,0,29,14,162,-211,-211,-427,-421,-29998,0,-2,-1,-4,-4,-6,-5,-26,2,2]} 1. d4 {[%emt 0:00:04]} Nf6 {[%emt 0:00:15]} 2. c4 {[%emt 0:00:09]} c5 {[%emt 0:00:32]} 3. Nf3 {[%emt 0:00:09]} cxd4 {[%emt 0:00:45]} 4. Nxd4 {[%emt 0:00:07]} Nc6 {[%emt 0:01:00]} 5. g3 {[%emt 0:00:46]} g6 {[%emt 0:04:56]} 6. Bg2 {[%emt 0:00:26]} Bg7 {[%emt 0:00:08]} 7. O-O {[%emt 0:00:55]} O-O {[%emt 0:00:17]} 8. Nc3 {[%emt 0:01:39]} Qa5 {[%emt 0:02:07]} 9. Nb3 {[%emt 0:06:38] 9.e3 is the hot move.} Qh5 {[%emt 0:00:32]} 10. h3 {[%emt 0:12:23] A39: Symmetrical English vs ...g6: 4 Bg2 Bg7 5 Nf3 Nf6 6 0-0 0-0 7 d4.} d6 {[%emt 0:07:36]} 11. g4 {[%emt 0:07:17]} Bxg4 {[%emt 0:01:45]} 12. hxg4 {[%emt 0:00:05]} Nxg4 {[%emt 0:00:05][%csl Gg4][%cal Rh5h2]} 13. Bf4 {[%emt 0:01:52] Inhibits Qh2+.} Be5 {[%emt 0:08:40] [#]} 14. Qc1 $146 {[%emt 0:07:33]} (14. Qd2 $11 {and White has nothing to worry.}) ({Predecessor:} 14. Qd2 g5 15. Bxe5 Ncxe5 16. Rfc1 Nxc4 17. Qd4 Nce3 18. fxe3 Qh4 19. Nd5 Qf2+ 20. Kh1 Qh4+ {½-½ (20) Banusz,T (2612)-Berkes,F (2678) Valjevo 2018}) 14... g5 $1 $19 {[%emt 0:06:41]} 15. Bxe5 {[%emt 0:00:20]} Ncxe5 {[%emt 0:01:09][%csl Gg4][%cal Rh5h2]} 16. Rd1 {[%emt 0:03:02]} f5 $1 {[%emt 0:08:34][%cal Bf7f5,Bf5f4,Bf4f3][%mdl 32] Strongly threatening ...Qh4.} (16... Qh4 17. Ne4 (17. f3 $2 Qf2+ 18. Kh1 Ne3 $19) 17... h6 18. Nd4 $17 (18. Kf1 $2 f5 $19)) 17. Rd4 {[%emt 0:05:26]} (17. f3 $2 Qh2+ 18. Kf1 Qh4 $19) (17. Rd5 $17 {was the only chance.} f4 18. Nd1 (18. f3 $2 Qh2+ 19. Kf1 Ne3+ 20. Ke1 N5xc4 $19)) 17... f4 $1 {[%emt 0:11:30]} ({Worse is} 17... Qh4 18. Nd1 $14) 18. Nd1 {[%emt 0:11:58]} ({Don't blunder} 18. f3 $2 Qh2+ 19. Kf1 Ne3+ 20. Ke1 Qxg2 $19) 18... f3 {[%emt 0:07:01]} 19. Rxg4 {[%emt 0:03:50]} Qxg4 {[%emt 0:02:10][%csl Gf3][%cal Rg4g2][%mdl 64] Pin, Double Attack} 20. Ne3 {[%emt 0:00:07]} (20. exf3 {is the only way for White.} Nxf3+ 21. Kf1) 20... Qh4 {[%emt 0:03:34]} 21. exf3 {[%emt 0:02:05]} Nxf3+ {[%emt 0:00:37]} ({Less strong is} 21... Nd3 22. Qd2 Nf4 23. Nd4 $14) 22. Bxf3 {[%emt 0:00:37]} Rxf3 {[%emt 0:00:06]} 23. Qd2 {[%emt 0:01:38]} Raf8 {[%emt 0:03:22][%cal Rf3f2]} 24. Rf1 {[%emt 0:04:20]} (24. Ng2 Qxf2+ 25. Qxf2 Rxf2 26. Rb1) 24... e6 {[%emt 0:06:26]} 25. Ng2 {[%emt 0:06:18] [#]} Qh6 {[%emt 0:01:10] ...Rh3 is the strong threat.} 26. Qxd6 {[%emt 0:02:55]} Rh3 {[%emt 0:01:17][%csl Gh6][%cal Rh3h1]} 27. f4 {[%emt 0:01:58]} gxf4 $2 {[%emt 0:15:31]} (27... Rh1+ $19 28. Kf2 Rh2) 28. Nd4 $15 {[%emt 0:10:36][%cal Bb3d4,Bd4e6,Be6g5][%mdl 32]} f3 $40 {[%emt 0:04:13][%mdl 128] White needs to defend precisely.} 29. Qxe6+ {[%emt 0:00:37]} Qxe6 {[%emt 0:00:07]} 30. Nxe6 {[%emt 0:00:05]} Rf6 {[%emt 0:02:39] Hoping for ...Rg3.} (30... f2+ $5 31. Rxf2 {[#]} Rh1+ $1 32. Kxh1 Rxf2 $11) 31. Ngf4 {[%emt 0:00:56]} Rhh6 {[%emt 0:00:30]} 32. Re1 {[%emt 0:01:13]} Kf7 {[%emt 0:00:32][%cal Rf6e6]} 33. Ng5+ {[%emt 0:00:48] Pair of Knights!} Kf8 {[%emt 0:00:29]} (33... Kg8 $1 $11 34. Re8+ Rf8 35. Rxf8+ Kxf8) 34. Nfe6+ $4 {[%emt 0:03:01][%mdl 8192]} (34. Re4 $18 {was the only winning move.}) 34... Kg8 $19 {[%emt 0:00:23][%mdl 1024] ( -> ...f2+). Black has strong compensation.} 35. Kf2 $2 {[%emt 0:02:52]} (35. Rd1 {was necessary.} f2+ 36. Kg2) 35... Rh2+ {[%emt 0:00:11][%mdl 64] Skewer} 36. Kg3 {[%emt 0:00:45]} (36. Ke3 $19 h6 37. b3) 36... Rxb2 $2 {[%emt 0:00:54]} (36... Rg2+ {mates} 37. Kh4 Rh6#) 37. Nxf3 $11 {[%emt 0:00:27]} Rxa2 {[%emt 0:00:24]} 38. Ned4 {[%emt 0:01:08]} Ra3 {[%emt 0:00:32]} 39. c5 {[%emt 0:01:13]} Rc3 {[%emt 0:00:37]} 40. Ra1 {[%emt 0:00:11]} Rc4 {[%emt 0:00:28]} (40... a6 $5 {[%cal Rc3c5]}) 41. Rxa7 {[%emt 0:30:55] Weighted Error Value: White=0.87/Black=0.63} 1/2-1/2

[Event "Ceske Budejovice IM 2022"]
[Site "Ceske Budejovice"]
[Date "2022.07.02"]
[Round "2.1"]
[White "Gretarsson, Helgi Ass"]
[Black "Plischki, Sebastian"]
[Result "1-0"]
[ECO "A04"]
[WhiteElo "2472"]
[BlackElo "2384"]
[Annotator "RC"]
[PlyCount "113"]
[EventDate "2022.07.01"]
[EventType "tourn"]
[EventCountry "CZE"]
[SourceTitle "playchess.com"]
[Source "ChessBase"]
[SourceQuality "1"]
[TimeControl "40/5400+30:1800+30"]

1. Nf3 {[%emt 0:00:02]} c5 {[%emt 0:00:29]} 2. c4 {[%emt 0:00:07]} Nc6 {[%emt 0:00:31]} 3. e3 {[%emt 0:02:38]} Nf6 {[%emt 0:00:57]} 4. d4 {[%emt 0:12:24]} cxd4 {[%emt 0:00:36]} 5. Nxd4 {[%emt 0:00:11]} g6 {[%emt 0:01:44]} 6. Nc3 {[%emt 0:03:38]} Bg7 {[%emt 0:00:14]} 7. Be2 {[%emt 0:04:15]} O-O {[%emt 0:00:34]} 8. O-O {[%emt 0:01:53]} d6 {[%emt 0:17:09]} 9. h3 {[%emt 0:17:52]} Re8 {[%emt 0:07:06]} 10. Nc2 {[%emt 0:05:14]} Be6 {[%emt 0:04:07]} 11. e4 {[%emt 0:02:24]} Nd7 {[%emt 0:06:39]} 12. Nd5 {[%emt 0:00:24]} Nc5 {[%emt 0:06:18]} 13. f3 {[%emt 0:00:08]} a5 {[%emt 0:00:41]} 14. Kh2 {[%emt 0:04:40]} a4 {[%emt 0:04:53]} 15. Rb1 {[%emt 0:00:09]} f5 {[%emt 0:01:40]} 16. exf5 {[%emt 0:00:43]} Bxf5 {[%emt 0:00:10]} 17. Nde3 {[%emt 0:00:47]} Bd7 {[%emt 0:02:09]} 18. f4 {[%emt 0:00:30]} Rf8 {[%emt 0:03:38]} 19. Bg4 {[%emt 0:15:08]} Bxg4 {[%emt 0:02:37]} 20. Qxg4 {[%emt 0:02:06]} e6 {[%emt 0:02:20]} 21. b4 {[%emt 0:06:18]} axb3 {[%emt 0:00:05]} 22. axb3 {[%emt 0:00:01]} Qe7 {[%emt 0:08:01]} 23. Ba3 {[%emt 0:01:57]} b6 {[%emt 0:04:22]} 24. Qd1 {[%emt 0:04:44]} Rfd8 {[%emt 0:03:40]} 25. b4 {[%emt 0:01:37]} Ne4 {[%emt 0:01:56]} 26. Qd3 {[%emt 0:01:44]} Nf6 {[%emt 0:06:46]} 27. Rbd1 {[%emt 0:00:54]} Qf7 {[%emt 0:01:17]} 28. Qb3 {[%emt 0:07:12]} d5 {[%emt 0:03:53]} 29. Bb2 {[%emt 0:01:45]} Rac8 {[%emt 0:03:37]} 30. Bxf6 {[%emt 0:00:30]} dxc4 {[%emt 0:01:12]} 31. Qxc4 {[%emt 0:03:11]} Bxf6 {[%emt 0:01:40]} 32. Rxd8+ {[%emt 0:00:21]} Bxd8 {[%emt 0:00:15]} 33. Nd4 {[%emt 0:00:04]} Na7 {[%emt 0:03:13]} 34. Qxe6 {[%emt 0:00:04]} Qxe6 {[%emt 0:00:46]} 35. Nxe6 {[%emt 0:00:01]} Kf7 {[%emt 0:01:50]} 36. Ng5+ {[%emt 0:01:03]} Bxg5 {[%emt 0:00:14]} 37. fxg5+ {[%emt 0:00:00]} Kg7 {[%emt 0:00:09]} 38. Rd1 {[%emt 0:00:08]} Rc7 {[%emt 0:00:34]} 39. Rd6 {[%emt 0:00:10]} Nc8 {[%emt 0:00:16]} 40. Rd8 {[%emt 0:00:42]} Ne7 {[%emt 0:00:57]} 41. Rb8 {[%emt 0:03:21]} Rc6 {[%emt 0:15:13]} 42. Ng4 {[%emt 0:11:35]} Rd6 {[%emt 0:03:02]} 43. Nh6 {[%emt 0:10:37]} Rd5 {[%emt 0:02:31]} 44. h4 {[%emt 0:00:06]} Rd4 {[%emt 0:00:32]} 45. Rxb6 {[%emt 0:00:06]} Rxh4+ {[%emt 0:00:17]} 46. Kg3 {[%emt 0:00:01]} Re4 {[%emt 0:08:53]} 47. Kf3 {[%emt 0:00:39]} Re5 {[%emt 0:00:30]} 48. Kf4 {[%emt 0:00:07]} Re1 {[%emt 0:00:32]} 49. Rb8 {[%emt 0:00:48]} Rb1 {[%emt 0:02:16]} 50. Kg4 {[%emt 0:06:33]} Rb2 {[%emt 0:00:54]} 51. g3 {[%emt 0:00:19]} Rb3 {[%emt 0:00:01]} 52. b5 {[%emt 0:02:43]} Rb1 {[%emt 0:01:09]} 53. Re8 {[%emt 0:00:17]} Rb4+ {[%emt 0:00:22]} 54. Kh3 {[%emt 0:00:17]} Rxb5 {[%emt 0:01:21]} 55. Rxe7+ {[%emt 0:00:09]} Kf8 {[%emt 0:00:23]} 56. Rf7+ {[%emt 0:00:19]} Ke8 {[%emt 0:00:02]} 57. Kh4 {[%emt 0:00:20]} 1-0